fUST/lending_fUST_20250306
["ID","MTS","AMOUNT","RATE_DAILY","PERIOD"]
[355496630,1741205444609,-500.0,0.0004,9]
[355496633,1741205444619,-500.0,0.0004,9]
[355496635,1741205444628,-500.0,0.0004,9]
[355496637,1741205444637,-500.0,0.0004,9]
[355496639,1741205444646,-500.0,0.0004,9]
[355496640,1741205444656,-500.0,0.0004,9]
[355496642,1741205444666,-1174.38,0.0004,9]
[355496644,1741205444677,-500.0,0.0004,9]
[355496647,1741205444686,-354.470915,0.0004,30]
[355496648,1741205444695,-22568.0,0.0004,120]
[355496650,1741205444704,-1070.34,0.0004,9]
[355496653,1741205444716,-500.0,0.0004,9]
[355496654,1741205444725,-2254.44,0.0004,9]
[355496656,1741205444735,-1134.16,0.0004,9]
[355496658,1741205444744,-14455.61,0.0004,7]
[355496660,1741205444753,-500.0,0.0004,9]
[355496662,1741205444762,-500.0,0.0004,9]
[355496664,1741205444771,-801.84,0.0004,9]
[355496666,1741205444781,-868.05,0.0004,9]
[355496668,1741205444790,-549.64,0.0004,9]
[355496670,1741205444799,-500.0,0.0004,9]
[355496672,1741205444809,-500.0,0.0004,9]
[355496674,1741205444819,-3387.34,0.0004,9]
[355496676,1741205444828,-500.0,0.0004,9]
[355496678,1741205444838,-500.0,0.0004,9]
[355496680,1741205444847,-501.51,0.0004,9]
[355496682,1741205444856,-1212.16,0.0004,9]
[355496684,1741205444866,-2103.1,0.0004,9]
[355496686,1741205444875,-500.0,0.0004,9]
[355496688,1741205444884,-500.0,0.0004,9]
[355496690,1741205444894,-500.0,0.0004,9]
[355496692,1741205444903,-500.0,0.0004,9]
[355496694,1741205444915,-525.15,0.0004,9]
[355496696,1741205444932,-477.95242221,0.0004,9]
[355496698,1741205444941,-985.2,0.0004,9]
[355496700,1741205444951,-2212.537,0.00040106,14]
[355496702,1741205444960,-189.728,0.00040273,57]
[355496704,1741205444970,-500.0,0.00040273,9]
[355496706,1741205444979,-500.0,0.00040273,9]
[355496708,1741205444989,-179.33588858,0.00040273,9]
[355496711,1741205444999,-527.89278601,0.00040273,9]
[355496713,1741205445010,-500.0,0.00040273,9]
[355496714,1741205445020,-628.36162313,0.00040273,9]
[355496716,1741205445030,-1174.38,0.00040273,9]
[355496719,1741205445040,-500.0,0.00040273,9]
[355496720,1741205445049,-1070.34,0.00040273,9]
[355496722,1741205445059,-500.0,0.00040273,9]
[355496724,1741205445069,-2254.44,0.00040273,9]
[355496726,1741205445079,-1134.16,0.00040273,9]
[355496728,1741205445088,-14455.61,0.00040273,7]
[355496730,1741205445098,-500.0,0.00040273,9]
[355496733,1741205445107,-500.0,0.00040273,9]
[355496735,1741205445118,-801.84,0.00040273,9]
[355496737,1741205445127,-868.05,0.00040273,9]
[355496739,1741205445136,-549.64,0.00040273,9]
[355496741,1741205445146,-500.0,0.00040273,9]
[355496743,1741205445155,-500.0,0.00040273,9]
[355496745,1741205445164,-3387.34,0.00040273,9]
[355496747,1741205445177,-500.0,0.00040273,9]
[355496749,1741205445186,-500.0,0.00040273,9]
[355496750,1741205445195,-501.51,0.00040273,9]
[355496752,1741205445204,-1212.16,0.00040273,9]
[355496754,1741205445213,-2103.1,0.00040273,9]
[355496756,1741205445223,-500.0,0.00040273,9]
[355496758,1741205445232,-555.75804534,0.00040273,9]
[355496760,1741205445243,-500.0,0.00040273,9]
[355496763,1741205445252,-500.0,0.00040273,9]
[355496764,1741205445261,-525.15,0.00040273,9]
[355496766,1741205445271,-985.2,0.00040273,9]
[355496768,1741205445281,-293.6207193,0.00040386,4]
[355496770,1741205445291,-479.64898253,0.00040547,9]
[355496773,1741205445302,-500.0,0.00040547,9]
[355496775,1741205445312,-500.0,0.00040547,9]
[355496777,1741205445323,-1174.38,0.00040547,9]
[355496778,1741205445333,-500.0,0.00040547,9]
[355496781,1741205445344,-1070.34,0.00040547,9]
[355496783,1741205445354,-500.0,0.00040547,9]
[355496785,1741205445362,-2254.44,0.00040547,9]
[355496787,1741205445372,-1134.16,0.00040547,9]
[355496789,1741205445381,-14455.61,0.00040547,7]
[355496791,1741205445391,-500.0,0.00040547,9]
[355496792,1741205445401,-500.0,0.00040547,9]
[355496795,1741205445411,-801.84,0.00040547,9]
[355496797,1741205445420,-868.05,0.00040547,9]
[355496798,1741205445430,-549.64,0.00040547,9]
[355496800,1741205445440,-500.0,0.00040547,9]
[355496802,1741205445450,-500.0,0.00040547,9]
[355496804,1741205445459,-3387.34,0.00040547,9]
[355496806,1741205445469,-500.0,0.00040547,9]
[355496809,1741205445479,-500.0,0.00040547,9]
[355496811,1741205445488,-501.51,0.00040547,9]
[355496813,1741205445498,-1212.16,0.00040547,9]
[355496815,1741205445508,-2103.1,0.00040547,9]
[355496817,1741205445518,-500.0,0.00040547,9]
[355496819,1741205445528,-500.0,0.00040547,9]
[355496821,1741205445537,-464.54706092,0.00040547,9]
[355496823,1741205445547,-525.15,0.00040547,9]
[355496825,1741205445556,-985.2,0.00040547,9]
[355496827,1741205445565,-162.88,0.00040813,2]
[355496829,1741205445575,-500.0,0.00040821,9]
[355496831,1741205445584,-470.16079805,0.00040821,9]
[355496833,1741205445593,-1174.38,0.00040821,9]
[355496835,1741205445603,-500.0,0.00040821,9]
[355496837,1741205445612,-1070.34,0.00040821,9]
[355496839,1741205445622,-500.0,0.00040821,9]
[355496841,1741205445633,-2254.44,0.00040821,9]
[355496843,1741205445643,-1134.16,0.00040821,9]
[355496845,1741205445653,-14455.61,0.00040821,7]
[355496847,1741205445662,-500.0,0.00040821,9]
[355496849,1741205445676,-500.0,0.00040821,9]
[355496851,1741205445695,-801.84,0.00040821,9]
[355496854,1741205445707,-549.64,0.00040821,9]
[355496856,1741205445721,-868.05,0.00040821,9]
[355496858,1741205445733,-500.0,0.00040821,9]
[355496860,1741205445745,-500.0,0.00040821,9]
[355496863,1741205445758,-3387.34,0.00040821,9]
[355496865,1741205445769,-341.35561457,0.00040821,9]
[355496867,1741205445780,-192.32,0.00040821,9]
[355496869,1741205445791,-501.51,0.00040821,9]
[355496871,1741205445803,-1212.16,0.00040821,9]
[355496873,1741205445814,-2103.1,0.00040821,9]
[355496875,1741205445825,-500.0,0.00040821,9]
[355496878,1741205445837,-500.0,0.00040821,9]
[355496880,1741205445848,-525.15,0.00040821,9]
[355496882,1741205445860,-985.2,0.00040821,9]
[355496884,1741205445871,-442.3845428,0.00041095,15]
[355496887,1741205445883,-500.0,0.00041095,120]
[355496889,1741205445894,-1174.38,0.00041095,120]
[355496891,1741205445905,-500.0,0.00041095,120]
[355496893,1741205445922,-1070.34,0.00041095,120]
[355496895,1741205445937,-500.0,0.00041095,120]
[355496897,1741205445949,-2254.44,0.00041095,120]
[355496900,1741205445961,-1134.16,0.00041095,120]
[355496902,1741205445973,-14455.61,0.00041095,7]
[355496904,1741205445984,-500.0,0.00041095,120]
[355496906,1741205445996,-500.0,0.00041095,120]
[355496908,1741205446009,-801.84,0.00041095,120]
[355496911,1741205446022,-549.64,0.00041095,120]
[355496913,1741205446033,-868.05,0.00041095,120]
[355496915,1741205446046,-500.0,0.00041095,120]
[355496917,1741205446057,-601.00694682,0.00041095,120]
[355496920,1741205446070,-999.0,0.00041095,120]
[355496922,1741205446082,-3387.34,0.00041095,30]
[355496924,1741205446095,-164.461011,0.00041095,14]
[355496926,1741205446105,-501.51,0.00041095,120]
[355496929,1741205446117,-1212.16,0.00041095,120]
[355496931,1741205446128,-2103.1,0.00041095,120]
[355496933,1741205446139,-500.0,0.00041095,120]
[355496935,1741205446149,-500.0,0.00041095,120]
[355496937,1741205446160,-151.0,0.00041095,14]
[355496939,1741205446172,-525.15,0.00041095,120]
[355496941,1741205446186,-240.6698,0.00041095,14]
[355496943,1741205446196,-985.2,0.00041095,120]
[355496946,1741205446208,-151.0,0.00041095,14]
[355496948,1741205446219,-151.0,0.00041095,14]
[355496951,1741205446230,-363.3,0.000411,30]
[355496953,1741205446243,-389.065826,0.00041211,2]
[355496955,1741205446255,-1218.82361087,0.00041347,28]
[355496956,1741205446266,-500.0,0.00041369,120]
[355496957,1741205446276,-1174.38,0.00041369,120]
[355496958,1741205446288,-500.0,0.00041369,120]
[355496959,1741205446299,-1070.34,0.00041369,120]
[355496960,1741205446311,-500.0,0.00041369,120]
[355496961,1741205446322,-2254.44,0.00041369,120]
[355496962,1741205446334,-1134.16,0.00041369,120]
[355496963,1741205446346,-14455.61,0.00041369,7]
[355496964,1741205446357,-500.0,0.00041369,120]
[355496965,1741205446367,-500.0,0.00041369,120]
[355496966,1741205446377,-801.84,0.00041369,120]
[355496967,1741205446387,-549.64,0.00041369,120]
[355496968,1741205446398,-868.05,0.00041369,120]
[355496969,1741205446408,-500.0,0.00041369,120]
[355496970,1741205446418,-3387.34,0.00041369,30]
[355496971,1741205446429,-501.51,0.00041369,120]
[355496972,1741205446441,-1212.16,0.00041369,120]
[355496973,1741205446452,-2103.1,0.00041369,120]
[355496974,1741205446465,-500.0,0.00041369,120]
[355496977,1741205446477,-500.0,0.00041369,120]
[355496979,1741205446490,-525.15,0.00041369,120]
[355496981,1741205446500,-985.2,0.00041369,120]
[355496983,1741205446511,-315.20158457,0.00041643,120]
[355496985,1741205446521,-1174.38,0.00041643,120]
[355496987,1741205446532,-463.36815066,0.00041643,120]
[355496989,1741205446542,-1070.34,0.00041643,120]
[355496991,1741205446553,-500.0,0.00041643,120]
[355496994,1741205446564,-2254.44,0.00041643,120]
[355496996,1741205446575,-151.0,0.00041643,14]
[355496998,1741205446586,-1134.16,0.00041643,120]
[355497000,1741205446596,-151.0,0.00041643,14]
[355497002,1741205446607,-151.0,0.00041643,120]
[355497004,1741205446617,-14455.61,0.00041643,7]
[355497006,1741205446627,-500.0,0.00041643,120]
[355497008,1741205446636,-500.0,0.00041643,120]
[355497010,1741205446648,-151.0,0.00041643,120]
[355497013,1741205446658,-801.84,0.00041643,120]
[355497015,1741205446668,-549.64,0.00041643,120]
[355497017,1741205446682,-868.05,0.00041643,120]
[355497019,1741205446693,-151.0,0.00041643,120]
[355497021,1741205446703,-500.0,0.00041643,120]
[355497023,1741205446714,-151.0,0.00041643,120]
[355497025,1741205446725,-778.63342783,0.00041643,120]
[355497027,1741205446736,-3387.34,0.00041643,30]
[355497030,1741205446748,-501.51,0.00041643,120]
[355497032,1741205446759,-1212.16,0.00041643,120]
[355497034,1741205446769,-2103.1,0.00041643,120]
[355497036,1741205446780,-500.0,0.00041643,120]
[355497038,1741205446792,-151.0,0.00041643,120]
[355497040,1741205446803,-500.0,0.00041643,120]
[355497042,1741205446813,-525.15,0.00041643,120]
[355497045,1741205446824,-985.2,0.00041643,120]
[355497047,1741205446840,-1174.38,0.00041917,120]
[355497049,1741205446851,-1070.34,0.00041917,120]
[355497051,1741205446862,-500.0,0.00041917,120]
[355497053,1741205446873,-2254.44,0.00041917,120]
[355497055,1741205446884,-363.653607,0.00041917,120]
[355497057,1741205446897,-1134.16,0.00041917,120]
[355497059,1741205446909,-363.653607,0.00041917,120]
[355497062,1741205446924,-14455.61,0.00041917,7]
[355497064,1741205446936,-500.0,0.00041917,120]
[355497066,1741205446947,-500.0,0.00041917,120]
[355497068,1741205446957,-801.84,0.00041917,120]
[355497070,1741205446969,-549.64,0.00041917,120]
[355497072,1741205446980,-868.05,0.00041917,120]
[355497074,1741205446990,-530.50722471,0.00041917,120]
[355497076,1741205447001,-3387.34,0.00041917,30]
[355497078,1741205447012,-501.51,0.00041917,120]
[355497080,1741205447024,-1212.16,0.00041917,120]
[355497084,1741205447046,-2103.1,0.00041917,120]
[355497086,1741205447060,-500.0,0.00041917,120]
[355497088,1741205447072,-500.0,0.00041917,120]
[355497091,1741205447084,-525.15,0.00041917,120]
[355497093,1741205447097,-985.2,0.00041917,120]
[355497095,1741205447109,-673.26,0.00042,30]
[355497097,1741205447121,-1000.0,0.0004211,10]
[355497100,1741205447134,-162.88,0.00042183,30]
[355497102,1741205447147,-1174.38,0.00042191,120]
[355497104,1741205447160,-151.0,0.00042191,120]
[355497107,1741205447177,-1070.34,0.00042191,120]
[355497109,1741205447189,-151.0,0.00042191,120]
[355497111,1741205447200,-500.0,0.00042191,120]
[355497114,1741205447212,-2254.44,0.00042191,120]
[355497116,1741205447223,-1134.16,0.00042191,120]
[355497118,1741205447234,-14455.61,0.00042191,7]
[355497120,1741205447247,-500.0,0.00042191,120]
[355497122,1741205447258,-500.0,0.00042191,120]
[355497125,1741205447270,-801.84,0.00042191,120]
[355497127,1741205447281,-549.64,0.00042191,120]
[355497129,1741205447292,-868.05,0.00042191,120]
[355497131,1741205447303,-3387.34,0.00042191,30]
[355497133,1741205447315,-501.51,0.00042191,120]
[355497135,1741205447326,-1212.16,0.00042191,120]
[355497138,1741205447337,-2103.1,0.00042191,120]
[355497140,1741205447351,-500.0,0.00042191,120]
[355497142,1741205447363,-568.89975991,0.00042191,120]
[355497145,1741205447373,-525.15,0.00042191,120]
[355497147,1741205447385,-985.2,0.00042191,120]
[355497149,1741205447396,-1000.0,0.00042247,10]
[355497151,1741205447406,-151.0,0.00042247,120]
[355497153,1741205447417,-158.990025,0.00042247,120]
[355497155,1741205447428,-151.0,0.00042247,120]
[355497157,1741205447439,-151.0,0.00042247,120]
[355497159,1741205447450,-151.0,0.00042247,120]
[355497161,1741205447460,-1000.0,0.00042384,10]
[355497163,1741205447471,-151.0,0.00042465,120]
[355497165,1741205447481,-151.0,0.00042465,120]
[355497168,1741205447492,-151.0,0.00042465,120]
[355497170,1741205447503,-151.0,0.00042465,120]
[355497172,1741205447514,-1174.38,0.00042465,120]
[355497174,1741205447525,-151.0,0.00042465,120]
[355497176,1741205447535,-151.0,0.00042465,120]
[355497178,1741205447546,-1070.34,0.00042465,120]
[355497181,1741205447557,-500.0,0.00042465,120]
[355497183,1741205447567,-2254.44,0.00042465,120]
[355497185,1741205447577,-1134.16,0.00042465,120]
[355497187,1741205447587,-14455.61,0.00042465,7]
[355497189,1741205447597,-500.0,0.00042465,120]
[355497191,1741205447608,-369.76768334,0.00042465,120]
[355497193,1741205447619,-801.84,0.00042465,120]
[355497195,1741205447629,-549.64,0.00042465,120]
[355497197,1741205447639,-868.05,0.00042465,120]
[355497199,1741205447650,-3387.34,0.00042465,30]
[355497219,1741205447823,-501.51,0.00042465,120]
[355497222,1741205447848,-1212.16,0.00042465,120]
[355497224,1741205447860,-2103.1,0.00042465,120]
[355497226,1741205447869,-327.95318181,0.00042465,120]
[355497228,1741205447878,-151.0,0.00042465,120]
[355497230,1741205447888,-525.15,0.00042465,120]
[355497232,1741205447897,-985.2,0.00042465,120]
[355497234,1741205447906,-151.0,0.00042465,120]
[355497236,1741205447918,-151.0,0.00042465,120]
[355497238,1741205447928,-363.3,0.000425,30]
[355497240,1741205447937,-153.49,0.000425,33]
[355497242,1741205447946,-153.49,0.000425,33]
[355497244,1741205447955,-153.49,0.000425,33]
[355497245,1741205447964,-153.49,0.000425,33]
[355497247,1741205447974,-153.49,0.000425,33]
[355497249,1741205447983,-153.49,0.000425,33]
[355497251,1741205447993,-1000.0,0.00042521,10]
[355497253,1741205448003,-1000.0,0.00042658,10]
[355497255,1741205448013,-300.0,0.000427,22]
[355497257,1741205448023,-6328.78180929,0.00042737,31]
[355497259,1741205448033,-155.775825,0.00042739,120]
[355497261,1741205448043,-1174.38,0.00042739,120]
[355497263,1741205448053,-1070.34,0.00042739,120]
[355497265,1741205448063,-500.0,0.00042739,120]
[355497267,1741205448074,-2254.44,0.00042739,120]
[355497269,1741205448084,-1134.16,0.00042739,120]
[355497271,1741205448093,-14455.61,0.00042739,7]
[355497273,1741205448104,-500.0,0.00042739,120]
[355497275,1741205448113,-801.84,0.00042739,120]
[355497277,1741205448123,-549.64,0.00042739,120]
[355497279,1741205448132,-868.05,0.00042739,120]
[355497281,1741205448142,-3387.34,0.00042739,30]
[355497283,1741205448151,-501.51,0.00042739,120]
[355497285,1741205448161,-1212.16,0.00042739,120]
[355497287,1741205448171,-2103.1,0.00042739,120]
[355497289,1741205448182,-525.15,0.00042739,120]
[355497291,1741205448191,-985.2,0.00042739,120]
[355497293,1741205448201,-1000.0,0.00042795,10]
[355497295,1741205448210,-1000.0,0.00042932,10]
[355497297,1741205448220,-200.0,0.00042964,2]
[355497299,1741205448229,-216.0,0.00042964,2]
[355497301,1741205448239,-233.28,0.00042964,2]
[355497303,1741205448248,-251.9424,0.00042964,2]
[355497305,1741205448257,-272.097792,0.00042964,2]
[355497307,1741205448267,-293.86561536,0.00042964,2]
[355497309,1741205448277,-317.37486459,0.00042964,2]
[355497311,1741205448287,-342.76485376,0.00042964,2]
[355497313,1741205448297,-370.18604206,0.00042964,2]
[355497315,1741205448306,-400.0,0.00042964,2]
[355497317,1741205448315,-222000.0,0.0004299,2]
[355497318,1741205448324,-265.174816,0.0004299,120]
[355497320,1741205448334,-151.0,0.0004299,120]
[355497322,1741205448343,-151.0,0.0004299,120]
[355497324,1741205448353,-151.0,0.0004299,120]
[355497327,1741205448364,-151.0,0.0004299,120]
[355497329,1741205448375,-151.0,0.0004299,120]
[355497331,1741205448385,-152.561569,0.0004299,120]
[355497333,1741205448394,-151.0,0.0004299,120]
[355497335,1741205448404,-151.0,0.0004299,120]
[355497337,1741205448413,-151.0,0.0004299,120]
[355497339,1741205448423,-151.0,0.0004299,120]
[355497341,1741205448434,-151.0,0.0004299,120]
[355497343,1741205448443,-229.625175,0.0004299,120]
[355497345,1741205448453,-151.0,0.0004299,120]
[355497347,1741205448463,-151.0,0.0004299,14]
[355497349,1741205448473,-363.653607,0.0004299,120]
[355497351,1741205448483,-151.0,0.0004299,14]
[355497353,1741205448492,-363.653607,0.0004299,120]
[355497355,1741205448501,-230.542611,0.0004299,120]
[355497357,1741205448511,-151.0,0.0004299,120]
[355497359,1741205448521,-151.0,0.0004299,120]
[355497361,1741205448529,-151.0,0.0004299,120]
[355497363,1741205448539,-151.0,0.0004299,120]
[355497365,1741205448548,-151.0,0.0004299,120]
[355497367,1741205448557,-151.0,0.0004299,120]
[355497368,1741205448567,-151.0,0.0004299,120]
[355497370,1741205448576,-150.0,0.00043,120]
[355497372,1741205448586,-500.0,0.00043,120]
[355497374,1741205448595,-1000.0,0.00043,120]
[355497376,1741205448604,-1174.38,0.00043013,120]
[355497378,1741205448614,-1070.34,0.00043013,120]
[355497380,1741205448623,-500.0,0.00043013,120]
[355497382,1741205448632,-2254.44,0.00043013,120]
[355497384,1741205448642,-1134.16,0.00043013,120]
[355497386,1741205448652,-14455.61,0.00043013,7]
[355497388,1741205448661,-500.0,0.00043013,120]
[355497390,1741205448671,-801.84,0.00043013,120]
[355497392,1741205448682,-549.64,0.00043013,120]
[355497394,1741205448691,-868.05,0.00043013,120]
[355497396,1741205448701,-3387.34,0.00043013,30]
[355497398,1741205448710,-501.51,0.00043013,120]
[355497400,1741205448720,-1212.16,0.00043013,120]
[355497402,1741205448730,-2103.1,0.00043013,120]
[355497404,1741205448739,-525.15,0.00043013,120]
[355497406,1741205448749,-985.2,0.00043013,120]
[355497408,1741205448759,-217.44518966,0.00043066,86]
[355497411,1741205448768,-1000.0,0.00043068,10]
[355497412,1741205448778,-5000.0,0.0004309,7]
[355497415,1741205448788,-385.42,0.000431,30]
[355497416,1741205448797,-361.46,0.000431,30]
[355497419,1741205448808,-1000.0,0.000432,90]
[355497421,1741205448818,-1000.0,0.00043205,10]
[355497422,1741205448828,-188.62643232,0.00043253,120]
[355497423,1741205448837,-1174.38,0.00043287,120]
[355497424,1741205448846,-1070.34,0.00043287,120]
[355497425,1741205448856,-500.0,0.00043287,120]
[355497426,1741205448866,-2254.44,0.00043287,120]
[355497427,1741205448876,-1134.16,0.00043287,120]
[355497428,1741205448886,-14455.61,0.00043287,7]
[355497430,1741205448897,-500.0,0.00043287,120]
[355497432,1741205448907,-801.84,0.00043287,120]
[355497434,1741205448918,-549.64,0.00043287,120]
[355497436,1741205448932,-868.05,0.00043287,120]
[355497438,1741205448941,-3387.34,0.00043287,30]
[355497440,1741205448951,-501.51,0.00043287,120]
[355497442,1741205448961,-1212.16,0.00043287,120]
[355497444,1741205448971,-2103.1,0.00043287,120]
[355497446,1741205448980,-525.15,0.00043287,120]
[355497448,1741205448990,-985.2,0.00043287,120]
[355497450,1741205448999,-1588.96,0.000433,14]
[355497452,1741205449011,-1000.0,0.00043342,10]
[355497454,1741205449020,-1000.0,0.00043479,10]
[355497456,1741205449030,-673.26,0.000435,30]
[355497458,1741205449039,-151.0,0.000435,14]
[355497460,1741205449049,-160.0,0.00043524,4]
[355497462,1741205449058,-162.88,0.00043552,30]
[355497464,1741205449068,-1174.38,0.00043561,120]
[355497466,1741205449078,-1070.34,0.00043561,120]
[355497468,1741205449088,-500.0,0.00043561,120]
[355497470,1741205449097,-2254.44,0.00043561,120]
[355497472,1741205449106,-1134.16,0.00043561,120]
[355497474,1741205449116,-14455.61,0.00043561,7]
[355497476,1741205449126,-500.0,0.00043561,120]
[355497478,1741205449136,-801.84,0.00043561,120]
[355497480,1741205449145,-549.64,0.00043561,120]
[355497482,1741205449154,-868.05,0.00043561,120]
[355497484,1741205449164,-3387.34,0.00043561,30]
[355497486,1741205449174,-501.51,0.00043561,120]
[355497488,1741205449184,-1212.16,0.00043561,120]
[355497490,1741205449193,-2103.1,0.00043561,120]
[355497492,1741205449203,-525.15,0.00043561,120]
[355497494,1741205449213,-985.2,0.00043561,120]
[355497496,1741205449222,-590.69421,0.000436,120]
[355497498,1741205449231,-1000.0,0.00043616,10]
[355497500,1741205449240,-363.3,0.000437,30]
[355497502,1741205449250,-1000.0,0.00043753,10]
[355497504,1741205449261,-6795.01599142,0.000438,2]
[355497506,1741205449271,-1174.38,0.00043835,120]
[355497508,1741205449281,-1070.34,0.00043835,120]
[355497510,1741205449291,-500.0,0.00043835,120]
[355497512,1741205449301,-2254.44,0.00043835,120]
[355497514,1741205449311,-1134.16,0.00043835,120]
[355497516,1741205449320,-14455.61,0.00043835,7]
[355497518,1741205449330,-500.0,0.00043835,120]
[355497520,1741205449340,-801.84,0.00043835,120]
[355497522,1741205449349,-549.64,0.00043835,120]
[355497524,1741205449359,-868.05,0.00043835,120]
[355497526,1741205449368,-3387.34,0.00043835,30]
[355497528,1741205449378,-501.51,0.00043835,120]
[355497530,1741205449388,-1212.16,0.00043835,120]
[355497532,1741205449398,-2103.1,0.00043835,120]
[355497534,1741205449408,-525.15,0.00043835,120]
[355497536,1741205449417,-985.2,0.00043835,120]
[355497538,1741205449429,-1000.0,0.00043852,10]
[355497540,1741205449439,-1000.0,0.00043852,10]
[355497542,1741205449448,-1000.0,0.00043852,10]
[355497544,1741205449457,-1000.0,0.00043852,10]
[355497546,1741205449466,-1000.0,0.0004389,10]
[355497548,1741205449476,-252.17060771,0.00044,120]
[355497550,1741205449485,-4168.09,0.00044,30]
[355497552,1741205449495,-3780.0,0.00044,120]
[355497554,1741205449504,-150.5,0.00044,120]
[355497556,1741205449513,-151.0,0.00044027,120]
[355497558,1741205449523,-151.0,0.00044027,120]
[355497560,1741205449532,-151.0,0.00044027,120]
[355497562,1741205449541,-1000.0,0.00044027,10]
[355497565,1741205449551,-151.0,0.00044109,120]
[355497567,1741205449561,-151.0,0.00044109,120]
[355497569,1741205449571,-151.0,0.00044109,120]
[355497571,1741205449580,-1174.38,0.00044109,120]
[355497573,1741205449590,-157.479341,0.00044109,120]
[355497575,1741205449599,-151.0,0.00044109,120]
[355497577,1741205449609,-151.0,0.00044109,120]
[355497579,1741205449618,-151.0,0.00044109,120]
[355497581,1741205449628,-151.0,0.00044109,120]
[355497583,1741205449638,-1070.34,0.00044109,120]
[355497585,1741205449647,-500.0,0.00044109,120]
[355497587,1741205449656,-2254.44,0.00044109,120]
[355497589,1741205449666,-151.0,0.00044109,14]
[355497591,1741205449675,-363.653607,0.00044109,120]
[355497593,1741205449685,-151.0,0.00044109,14]
[355497595,1741205449694,-363.653607,0.00044109,120]
[355497597,1741205449703,-1134.16,0.00044109,120]
[355497599,1741205449712,-14455.61,0.00044109,7]
[355497601,1741205449723,-548.94749846,0.00044109,120]
[355497603,1741205449732,-151.0,0.00044109,120]
[355497605,1741205449742,-801.84,0.00044109,120]
[355497607,1741205449751,-549.64,0.00044109,120]
[355497609,1741205449762,-153.734265,0.00044109,120]
[355497611,1741205449771,-868.05,0.00044109,120]
[355497613,1741205449781,-151.0,0.00044109,120]
[355497615,1741205449790,-3387.34,0.00044109,30]
[355497617,1741205449799,-501.51,0.00044109,120]
[355497619,1741205449809,-1212.16,0.00044109,120]
[355497621,1741205449818,-2103.1,0.00044109,120]
[355497623,1741205449827,-298.109638,0.00044109,120]
[355497625,1741205449836,-525.15,0.00044109,120]
[355497627,1741205449846,-985.2,0.00044109,120]
[355497629,1741205449855,-151.0,0.00044152,120]
[355497631,1741205449865,-489.94061834,0.00044152,10]
[355497633,1741205449874,-1000.0,0.00044152,10]
[355497635,1741205449884,-1000.0,0.00044152,10]
[355497637,1741205449893,-1000.0,0.00044164,10]
[355497639,1741205449903,-300.0,0.000442,23]
[355497641,1741205449914,-153.49,0.000443,36]
[355497643,1741205449923,-153.49,0.000443,36]
[355497645,1741205449935,-153.49,0.000443,36]
[355497646,1741205449944,-153.49,0.000443,36]
[355497649,1741205449955,-153.49,0.000443,36]